bitfinex/quotes_ETHUSD_20240907
["timestamp","ask_amount","ask_price","bid_price","bid_amount"]
[1725716952033,2.9716998,2294.4,2293.3,2.4184]
[1725716952034,3.73818249,2293.8,2293.3,2.4184]
[1725716952359,6.64884,2294.0,2293.2,4.7986]
[1725716952360,3.73818249,2293.6,2293.2,4.7986]
[1725716952515,3.73818249,2293.6,2293.2,4.3606]
[1725716952935,3.73818249,2293.6,2293.2,8.72119]
[1725716953256,3.73818249,2293.6,2293.2,4.36059]
[1725716953659,3.73818249,2293.4,2293.0,4.36094]
[1725716953883,3.73818249,2293.4,2293.1,4.36081]
[1725716954188,3.73818249,2293.2,2292.8,4.79934]
[1725716954483,3.73818249,2293.0,2292.8,4.79934]
[1725716954781,3.73818249,2293.0,2292.5,4.362]
[1725716954959,3.73818249,2292.8,2292.6,4.36181]
[1725716955141,3.73818249,2292.8,2292.5,4.79993]
[1725716955499,3.73818249,2293.0,2292.6,4.36183]
[1725716955644,3.73818249,2293.0,2292.5,9.16186]
[1725716955856,3.73818249,2293.0,2292.6,4.36185]
[1725716956167,3.73818249,2293.0,2292.7,4.36165]
[1725716956946,3.73818249,2293.0,2292.5,9.16182]
[1725716957268,3.73818249,2293.0,2292.7,4.36166]
[1725716958674,3.73818249,2293.0,2292.7,8.72318]
[1725716959579,3.73818249,2293.0,2292.8,4.36146]
[1725716960276,3.73818249,2293.2,2292.9,4.36117]
[1725716960431,3.73818249,2293.2,2293.0,4.36109]
[1725716960860,3.73818249,2293.2,2292.8,8.72275]
[1725716961047,3.73818249,2293.2,2292.8,4.36129]
[1725716961379,3.73818249,2293.2,2292.9,4.36124]
[1725716961553,3.73818249,2293.2,2292.9,4.661473]
[1725716961554,4.87762626,2293.2,2292.9,4.661473]
[1725716961749,3.73818249,2293.2,2292.9,0.300233]
[1725716962983,3.73818249,2293.2,2292.9,4.661383]
[1725716963676,3.73818249,2293.4,2293.2,4.3606]
[1725716964039,3.73818249,2293.4,2293.0,4.66190885]
[1725716964040,7.27,2293.5,2293.3,4.36052]
[1725716964340,3.73818249,2293.4,2293.3,4.66111904]
[1725716966074,3.73818249,2293.6,2293.4,4.3602]
[1725716966383,3.73818249,2293.8,2293.5,4.36014]
[1725716966681,3.73818249,2293.8,2293.6,4.35984]
[1725716967069,3.73818249,2293.8,2293.6,4.66002238]
[1725716967388,3.73818249,2293.8,2293.6,9.01987238]
[1725716967582,3.73818249,2294.0,2293.8,4.35943]
[1725716967968,3.73818249,2294.0,2293.9,0.29978537]
[1725716968173,3.73818249,2294.0,2293.9,4.35938]
[1725716968556,3.73818249,2294.0,2293.9,9.01854537]
[1725716968769,3.73818249,2294.2,2294.1,4.359]
[1725716968963,0.45651024,2294.4,2294.3,4.35862]
[1725716968964,3.73818249,2294.4,2294.3,4.35862]
[1725716969175,4.65919041,2294.4,2294.2,4.3588]
[1725716969482,4.65919041,2294.4,2294.3,4.35862]
[1725716969682,4.65919041,2294.4,2294.3,4.65786834]
[1725716970543,3.73818249,2294.4,2294.3,9.01648834]
[1725716970953,3.73818249,2294.4,2294.3,8.71724]
[1725716971147,3.73818249,2294.4,2294.3,9.01639449]
[1725716971890,3.73818249,2294.4,2294.3,4.65777449]
[1725716972298,10.1452298,2294.4,2294.3,0.29915449]
[1725716972500,6.70575876,2294.4,2293.6,4.35984]
[1725716972644,3.73818249,2293.7,2293.6,8.7197]
[1725716973248,3.73818249,2293.7,2293.6,4.35984]
[1725716974166,3.73818249,2293.7,2293.5,4.36013]
[1725716974495,0.37381825,2293.6,2293.5,4.36013]
[1725716976665,0.37381825,2293.6,2293.4,4.36022]
[1725716976974,3.73818249,2293.5,2293.4,8.72044]
[1725716979184,3.73703053,2293.5,2293.4,8.72044]
[1725716980080,3.73703053,2293.5,2293.4,9.01017208]
[1725716981124,3.73818249,2293.7,2293.6,4.35981]
[1725716981420,0.90859686,2293.9,2293.8,8.71914]
[1725716981644,0.90859686,2293.9,2293.7,4.35976]
[1725716981645,11.91677935,2294.1,2294.0,8.71838]
[1725716981980,11.91677935,2294.1,2294.0,9.00763877]
[1725716982733,14.91677935,2294.1,2294.0,9.00763877]
[1725716982890,4.64677935,2294.1,2294.0,9.00763877]
[1725716983197,1.8157865,2294.3,2294.2,8.71762]
[1725716983198,4.64677935,2294.3,2294.2,8.71762]
[1725716983602,4.64677935,2294.3,2294.2,9.00645774]
[1725716984192,3.73818249,2294.3,2294.2,9.00645774]
[1725716989237,3.73818249,2294.5,2294.4,4.35843]
[1725716989439,3.73818249,2294.5,2294.3,4.35862]
[1725716989440,11.91677935,2294.7,2294.6,8.7161]
[1725716989640,3.73818249,2294.9,2294.7,4.35786]
[1725716989843,3.73818249,2294.9,2294.8,8.71534]
[1725716990040,3.73818249,2294.9,2294.8,9.00264922]
[1725716996222,3.73818249,2294.9,2294.8,13.36031922]
[1725716996769,3.73818249,2295.1,2295.0,8.71458]
[1725716997015,1.20893233,2295.3,2295.2,4.35691]
[1725716997197,6.73818249,2295.3,2295.2,4.35691]
[1725716997509,3.73818249,2295.5,2295.3,4.35672]
[1725716997709,1.81914149,2295.7,2295.2,2.77143674]
[1725716997710,3.73818249,2295.7,2295.6,4.35607]
[1725716998005,3.73818249,2295.7,2295.6,4.64218119]
[1725716998208,3.73818249,2295.7,2295.6,8.99833119]
[1725716998367,3.73818249,2295.7,2295.6,4.64218119]
[1725717001076,10.42644994,2295.7,2295.2,4.3568]
[1725717001304,6.68826745,2295.7,2295.6,0.27657415]
[1725717001473,6.68826745,2295.7,2295.2,4.3568]
[1725717001672,3.0,2295.6,2295.2,4.3568]
[1725717001907,0.87378183,2295.5,2295.3,0.27534503]
[1725717002175,3.73818249,2295.4,2295.3,0.27534503]
[1725717002374,6.73818249,2295.4,2295.3,4.63206503]
[1725717002685,6.68818249,2295.4,2295.3,8.98878503]
[1725717002874,3.68818249,2295.4,2295.3,8.98878503]
[1725717003271,3.73818249,2295.6,2295.5,4.35631]
[1725717003466,3.73818249,2295.6,2295.5,8.71265]
[1725717003693,3.73818249,2295.6,2295.5,8.9880666]
[1725717004516,3.73818249,2295.8,2295.7,4.35591]
[1725717004812,6.73818249,2295.8,2295.7,4.63114045]
[1725717005608,6.73818249,2295.8,2295.7,8.98710045]
[1725717005819,3.73818249,2295.8,2295.7,13.34306045]
[1725717005985,2.364,2296.3,2296.2,4.35502]
[1725717006186,2.364,2296.3,2296.2,0.27445283]
[1725717006579,2.364,2296.3,2296.2,4.62947283]
[1725717006835,4.18310288,2296.6,2296.3,4.35474]
[1725717007112,3.73818249,2296.4,2296.3,8.70957]
[1725717007887,3.73818249,2296.4,2296.3,13.0644]
[1725717008291,3.73818249,2296.4,2296.3,8.70957]
[1725717008694,3.73818249,2296.4,2296.3,8.9832429]
[1725717011305,5.82021763,2297.0,2296.6,4.35421]
[1725717011520,3.73818249,2296.7,2296.6,4.35421]
[1725717013128,3.73818249,2296.7,2296.6,8.70847]
[1725717016757,3.0,2297.2,2296.6,8.70847]
[1725717016758,3.73818249,2296.9,2296.8,4.35377]
[1725717017089,7.27,2297.7,2297.1,2.308]
[1725717017366,3.73818249,2297.2,2297.1,8.70662]
[1725717017519,3.73818249,2297.2,2297.1,4.35331]
[1725717017976,3.73818249,2297.2,2297.0,8.70688]
[1725717018148,3.73818249,2297.2,2297.0,4.35339]
[1725717018454,3.73818249,2297.2,2297.1,4.35331]
[1725717019028,3.73818249,2297.2,2297.0,4.35339]
[1725717019229,3.73818249,2297.2,2296.9,4.35368]
[1725717019463,3.73818249,2297.0,2296.9,4.35368]
[1725717019676,3.73818249,2297.0,2296.9,8.70737]
[1725717019829,3.68818249,2297.0,2296.9,8.70737]
[1725717020377,3.68818249,2297.0,2296.9,4.35368]
[1725717020528,3.68818249,2297.0,2296.9,8.70737]
[1725717021166,3.73818249,2297.2,2297.1,8.70662]
[1725717021728,3.73818249,2297.2,2297.1,8.9781912]
[1725717022530,3.73818249,2297.4,2297.3,4.35286]
[1725717022749,3.73818249,2297.4,2297.3,8.97717532]
[1725717023163,3.73818249,2297.6,2297.5,8.70502]
[1725717023428,3.73818249,2297.6,2297.5,8.9760791]
[1725717025168,3.68818249,2297.6,2297.5,8.9760791]
[1725717026168,3.68818249,2297.6,2297.5,4.6235291]
[1725717027027,3.68818249,2297.6,2297.5,8.9760791]
[1725717027930,3.68818249,2297.6,2297.5,4.6235291]
[1725717028128,3.68818249,2297.6,2297.5,8.9760791]
[1725717028331,3.63818249,2297.6,2297.5,8.9760791]
[1725717028643,3.63818249,2297.6,2297.5,4.6235291]
[1725717029267,4.00200074,2297.6,2297.5,0.2710591]
[1725717029480,7.00200074,2297.6,2297.5,0.2710591]
[1725717029677,7.00200074,2297.6,2297.4,4.35262]
[1725717029865,3.0,2297.5,2297.4,4.35262]
[1725717030464,3.63818249,2297.6,2297.4,4.35262]
[1725717030870,3.63818249,2297.6,2297.5,4.35255]
[1725717031594,3.63818249,2297.6,2297.4,4.35262]
[1725717032362,3.63818249,2297.6,2297.3,4.35289]
[1725717032564,3.73818249,2297.4,2297.3,4.35289]
[1725717033082,3.73818249,2297.4,2297.2,4.35298]
[1725717033887,3.73818249,2297.4,2297.2,8.70601]
[1725717035006,3.73818249,2297.4,2297.3,4.35293]
[1725717035175,3.73818249,2297.4,2297.2,4.35298]
[1725717035378,3.73818249,2297.4,2297.0,7.09936]
[1725717035379,2.3566,2297.3,2296.8,4.35376]
[1725717035580,3.73818249,2296.9,2296.8,4.35376]
[1725717035780,3.73818249,2296.9,2296.8,8.70764]
[1725717036720,3.73818249,2296.9,2296.8,9.03334181]
[1725717037021,3.73818249,2297.1,2297.0,8.70697]
[1725717037231,3.73818249,2297.1,2297.0,9.03258946]
[1725717038325,3.73818249,2297.1,2297.0,4.67908946]
[1725717039189,3.73818249,2297.1,2297.0,0.32561946]
[1725717039385,4.78297274,2297.1,2296.8,4.3537]
[1725717039587,3.73818249,2296.9,2296.8,4.3537]
[1725717040081,6.09478249,2296.9,2296.8,4.3537]
[1725717040296,6.09478249,2296.9,2296.4,4.35459]
[1725717040297,1.99662462,2296.7,2295.1,2.468]
[1725717040496,4.35534,2296.1,2295.5,4.35631]
[1725717040717,0.435534,2296.0,2295.3,4.35655]
[1725717040901,4.35559,2295.9,2295.3,4.35655]
[1725717041222,3.26465769,2295.8,2295.3,8.71317]
[1725717041523,3.26465769,2295.8,2294.9,0.438]
[1725717041524,3.73818249,2295.4,2294.9,4.79534]
[1725717041724,3.73818249,2295.0,2294.7,2.468]
[1725717041928,5.53117493,2295.0,2294.5,4.35813]
[1725717042172,4.35714,2295.1,2294.6,0.682613]
[1725717042315,4.35714,2295.1,2294.4,2.468]
[1725717042316,4.35732,2295.0,2294.4,2.468]
[1725717042651,3.73818249,2294.5,2294.4,6.82643]
[1725717044011,4.98156773,2294.6,2294.4,6.82643]
[1725717044253,4.98156773,2294.6,2294.5,4.35824]
[1725717047058,4.98156773,2294.6,2294.5,8.71648]
[1725717047216,7.27,2295.2,2294.8,4.3576]
[1725717047552,4.98156773,2294.9,2294.8,4.3576]
[1725717047768,4.98156773,2294.9,2294.7,4.35786]
[1725717048928,4.98156773,2294.9,2294.7,8.71572]
[1725717049124,4.98156773,2294.9,2294.7,4.35777]
[1725717050736,4.98156773,2294.9,2294.7,8.71553]
[1725717051105,4.98156773,2294.9,2294.7,4.35775]
[1725717051533,4.98156773,2294.9,2294.8,4.67640909]
[1725717052486,4.98156773,2294.9,2294.8,0.31873909]
[1725717052782,4.98156773,2294.9,2294.7,9.3181098]
[1725717053091,4.98156773,2294.9,2294.8,4.67808503]
[1725717054090,4.98156773,2294.9,2294.8,0.32041503]
[1725717054384,4.98156773,2294.9,2294.7,4.35774]
[1725717054587,4.98156773,2294.9,2294.8,0.3203296]
[1725717054910,4.98156773,2295.3,2295.1,4.35696]
[1725717055185,4.98156773,2295.3,2295.2,0.31989158]
[1725717055888,4.98156773,2295.3,2295.2,4.67680158]
[1725717056445,4.98156773,2295.3,2295.2,0.31989158]
[1725717056979,4.98156773,2295.3,2295.2,4.67680158]
[1725717057485,4.98156773,2295.3,2295.2,0.31989158]
[1725717058145,4.98156773,2295.3,2294.9,4.35734]
[1725717058349,4.98156773,2295.0,2294.9,4.35734]
[1725717059694,4.98156773,2295.0,2294.7,4.79569]
[1725717059889,4.98156773,2295.0,2294.8,4.35767]
[1725717060047,4.98156773,2295.0,2294.9,8.71496]
[1725717061169,4.98156773,2295.0,2294.9,11.06846]
[1725717061392,9.63869,2295.7,2294.9,11.06846]
[1725717061393,4.98156773,2295.3,2295.2,4.35691]
[1725717061685,4.98156773,2295.3,2295.2,8.71382]
[1725717062001,4.98156773,2295.3,2295.2,10.135202]
[1725717063062,4.98156773,2295.3,2295.2,5.778292]
[1725717063363,4.98156773,2295.3,2295.2,5.228292]
[1725717064461,4.98156773,2295.3,2295.2,9.585202]
[1725717065960,0.73370153,2295.8,2295.3,4.35656]
[1725717066160,3.73368638,2295.4,2295.3,4.35656]
[1725717066561,3.73368638,2295.4,2295.3,4.67579666]
[1725717066762,4.10705502,2295.4,2295.3,0.31923666]
[1725717066963,4.10705502,2295.4,2295.0,4.35715]
[1725717067226,3.73368638,2295.1,2295.0,4.35715]
[1725717069065,3.73368638,2295.1,2294.9,4.35748]
[1725717070819,3.73368638,2295.1,2294.8,4.35765]
[1725717070999,3.73368638,2294.9,2294.8,4.35765]
[1725717071373,3.73368638,2294.9,2294.7,5.127649]
[1725717071606,3.73368638,2294.9,2294.8,4.35767]
[1725717071770,3.73368638,2294.9,2294.7,5.127649]
[1725717071960,3.73368638,2294.9,2294.8,8.71534]
[1725717072165,3.73368638,2294.9,2294.8,9.9487659]
[1725717073427,3.73368638,2294.9,2294.8,5.5910959]
[1725717073639,3.73368638,2294.9,2294.8,4.35767]
[1725717076027,3.73368638,2294.9,2294.5,4.35809]
[1725717076227,2.3102,2295.0,2294.3,4.35854]
[1725717076228,3.73368638,2294.6,2294.3,4.35854]
[1725717076401,3.73368638,2294.4,2294.3,4.35853]
[1725717076600,3.73368638,2294.4,2294.3,9.153003]
[1725717076802,9.5802,2295.0,2294.8,4.35756]
[1725717076803,3.73368638,2294.9,2294.8,4.35756]
[1725717077112,3.73368638,2294.9,2294.8,8.71523]
[1725717078492,3.73368638,2294.9,2294.8,4.35756]
[1725717079442,3.73368638,2294.9,2294.7,8.71557]
[1725717079735,3.73368638,2294.9,2294.5,4.35813]
[1725717079945,3.73368638,2294.6,2294.5,4.35813]
[1725717081731,3.73368638,2294.6,2294.5,4.67857661]
[1725717086047,3.73368638,2294.6,2294.5,9.03681661]
[1725717086434,3.73368638,2294.6,2294.5,4.67857661]
[1725717086947,3.73368638,2294.6,2294.5,0.32044661]
[1725717087258,3.73368638,2294.6,2294.5,4.67868661]
[1725717096542,5.09658167,2294.6,2294.5,4.67868661]
[1725717096945,3.73368638,2294.6,2294.5,4.67868661]
[1725717101087,1.36289529,2294.7,2294.6,4.35805]
[1725717101393,5.09658167,2294.7,2294.6,4.35805]
[1725717101554,5.09658167,2294.7,2294.6,4.67881224]
[1725717103745,5.09658167,2294.7,2294.6,0.32076224]
[1725717105081,5.04658167,2294.7,2294.6,0.32076224]
[1725717105377,5.54947288,2294.7,2294.6,0.32076224]
[1725717106147,6.33248264,2294.7,2294.6,0.32076224]
[1725717106478,6.33248264,2294.7,2294.3,4.35846]
[1725717106682,3.73368638,2294.4,2294.3,4.35846]
[1725717110207,3.73368638,2294.4,2294.3,8.71708]
[1725717111036,3.68368638,2294.4,2294.3,8.71708]
[1725717111543,3.68368638,2294.4,2294.3,9.03813013]
[1725717111902,4.1437865,2294.6,2294.4,4.35838]
[1725717112104,1.55688946,2294.5,2294.4,4.35838]
[1725717112499,3.37267596,2294.5,2294.4,4.35838]
[1725717117809,3.37267596,2294.5,2294.3,4.35846]
[1725717118018,2.3915,2294.4,2294.0,4.35913]
[1725717118249,1.36985261,2294.1,2293.9,8.71848]
[1725717118454,1.55688946,2294.0,2293.9,4.3592]
[1725717118656,3.38335961,2294.0,2293.9,4.3592]
[1725717119057,1.82647015,2294.0,2293.9,5.231083]
[1725717119351,2.3915,2294.4,2293.9,5.231083]
[1725717119352,3.19612867,2294.2,2294.1,8.718]
[1725717119578,4.75301813,2294.2,2294.1,8.718]
[1725717119849,1.55688946,2294.2,2294.1,8.718]
[1725717120050,5.10648831,2294.3,2294.2,8.71762]
[1725717120651,1.36965852,2294.3,2294.2,15.45233]
[1725717120850,3.73682979,2294.6,2294.5,8.71648]
[1725717120851,5.10648831,2294.6,2294.5,8.71648]
[1725717121055,5.10648831,2294.6,2294.5,9.26648]
[1725717121415,1.36965852,2294.6,2294.5,9.26648]
[1725717121653,1.36965852,2294.6,2294.5,10.628971]
[1725717122259,1.36965852,2294.7,2294.6,13.07415]
[1725717122554,1.36965852,2295.0,2294.9,13.07244]
[1725717122856,1.36965852,2295.1,2295.0,8.71458]
[1725717123219,1.82647015,2295.3,2295.1,4.3571]
[1725717123516,6.01988739,2295.4,2295.2,4.35691]
[1725717124217,2.2830576,2295.3,2295.2,4.35691]
[1725717124517,2.28190276,2295.3,2295.2,4.35691]
[1725717124718,2.28190276,2295.3,2295.1,8.71408]
[1725717124919,5.56235707,2295.2,2295.1,4.35698]
[1725717125221,1.36916933,2295.3,2295.2,8.71382]
[1725717125418,1.36916933,2295.3,2295.2,9.26382]
[1725717125624,1.36916933,2295.4,2295.3,8.71344]
[1725717126553,5.56235707,2295.6,2295.4,4.35653]
[1725717126722,5.56235707,2295.6,2295.5,4.35634]
[1725717126923,5.56235707,2295.6,2295.5,4.67594839]
[1725717129401,5.56235707,2295.6,2295.5,0.31960839]
[1725717129402,5.10375289,2295.6,2295.5,0.31960839]
[1725717129698,5.10375289,2295.6,2295.4,8.71296]
[1725717129997,5.10375289,2295.6,2295.5,4.67507872]
[1725717130566,5.10375289,2295.6,2295.5,0.31873872]
[1725717132054,5.10375289,2295.6,2295.5,4.67507872]
[1725717132691,3.73682979,2295.6,2295.5,4.67507872]
[1725717134000,5.10375289,2295.6,2295.5,0.31873872]
[1725717134498,3.73682979,2295.6,2295.5,0.31873872]
[1725717134960,6.05192979,2295.6,2295.5,0.31873872]
[1725717135156,7.41885289,2295.6,2295.3,4.35671]
[1725717135355,3.73682979,2295.4,2295.2,8.71357]
[1725717135594,3.73682979,2295.4,2295.3,4.35672]
[1725717137682,3.73682979,2295.4,2295.2,4.35677]
[1725717137984,5.10375289,2295.4,2295.2,4.35677]
[1725717138204,3.73682979,2295.4,2295.2,4.35677]
[1725717138504,5.10375289,2295.4,2295.2,4.35677]
[1725717138705,5.10375289,2295.4,2295.2,8.7136]
[1725717139213,3.73682979,2295.4,2295.2,4.35677]
[1725717139388,3.73682979,2295.4,2295.2,8.7136]
[1725717139579,3.73682979,2295.4,2295.2,8.71356]
[1725717140048,3.73682979,2295.4,2295.3,4.35672]
[1725717141330,3.73682979,2295.4,2295.2,4.35677]
[1725717141635,3.73682979,2295.4,2295.3,0.31903141]
[1725717142815,3.73682979,2295.4,2295.3,4.67575141]
[1725717144423,3.73682979,2295.4,2295.3,9.93572355]
[1725717144602,3.73682979,2295.6,2295.5,4.35634]
[1725717144799,3.73682979,2295.6,2295.5,8.71268]
[1725717145123,3.73682979,2295.6,2295.5,9.03147307]
[1725717145826,3.73682979,2295.8,2295.6,4.35603]
[1725717146043,3.73682979,2295.7,2295.6,4.35603]
[1725717156022,1.55523294,2295.7,2295.6,4.35603]
[1725717156849,1.55523294,2295.7,2295.6,4.67430033]
[1725717157855,1.3669231,2295.8,2295.7,4.35596]
[1725717158020,1.55523294,2296.1,2296.0,8.7108]
[1725717158409,1.55523294,2296.1,2296.0,9.02868693]
[1725717159516,1.55523294,2296.3,2296.2,4.35497]
[1725717159848,1.55523294,2296.3,2296.2,9.02744474]
[1725717160076,3.72985211,2296.5,2296.4,4.35453]
[1725717160416,3.72985211,2296.5,2296.4,4.67179312]
[1725717161913,5.09677521,2296.5,2296.4,0.31726312]
[1725717163014,5.09677521,2296.5,2296.4,4.67190312]
[1725717163216,3.72985211,2296.5,2296.4,4.67190312]
[1725717163417,5.09677521,2296.5,2296.4,4.67190312]
[1725717164249,3.72985211,2296.5,2296.4,4.67190312]
[1725717164457,1.3669231,2296.6,2296.5,8.7089]
[1725717164657,5.09677521,2296.7,2296.6,4.35426]
[1725717165063,5.09677521,2296.7,2296.6,4.67047039]
[1725717166752,5.09677521,2296.7,2296.6,9.02473039]
[1725717166961,1.3669231,2296.8,2296.6,1.30210524]
[1725717167115,5.55537939,2296.9,2296.6,1.30210524]
[1725717167116,5.09677521,2296.9,2296.8,8.70776]
[1725717167517,3.72985211,2296.9,2296.8,8.70776]
[1725717168074,3.72985211,2296.9,2296.8,9.02359273]
[1725717169456,3.72985211,2297.1,2296.8,1.452432]
[1725717169758,3.72985211,2297.1,2297.0,4.35331]
[1725717170133,3.72985211,2297.1,2297.0,4.66873412]
[1725717171653,3.72985211,2297.1,2297.0,9.02223412]
[1725717172980,3.72985211,2297.1,2297.0,4.66873412]
[1725717173473,3.72985211,2297.1,2297.0,0.31542412]
[1725717173981,3.72985211,2297.1,2297.0,0.31530009]
[1725717174141,6.01655211,2297.1,2296.8,4.3537]
[1725717174339,3.72985211,2296.9,2296.8,4.3537]
[1725717174561,3.72985211,2296.9,2296.6,4.35412]
[1725717174766,3.72985211,2296.9,2296.7,4.35402]
[1725717174941,3.72985211,2296.9,2296.6,4.789532]
[1725717175141,3.72985211,2296.7,2296.6,4.789532]
[1725717175880,3.72985211,2296.9,2296.6,4.789532]
[1725717176091,3.72985211,2296.9,2296.7,4.35395]
[1725717177446,3.72985211,2296.9,2296.8,4.35388]
[1725717177680,3.72985211,2297.1,2296.8,4.35388]
[1725717177880,3.72985211,2297.1,2296.9,4.35369]
[1725717179295,3.72985211,2297.1,2297.0,4.3535]
[1725717179680,3.72985211,2297.1,2297.0,9.14235]
[1725717181621,3.72985211,2297.1,2297.0,4.78885]
[1725717181989,3.72985211,2297.1,2297.0,9.14235]
[1725717182590,3.72985211,2297.1,2297.0,4.3535]
[1725717186231,2.2867,2297.0,2296.5,4.35431]
[1725717186430,2.2867,2297.0,2296.6,4.35417]
[1725717186732,2.2867,2297.0,2296.8,4.35387]
[1725717187034,3.0,2297.1,2296.9,4.66867491]
[1725717187394,5.2867,2297.2,2296.9,4.66867491]
[1725717187592,7.27,2297.4,2297.2,4.35299]
[1725717187900,7.27,2297.4,2297.2,4.788289]
[1725717187901,10.99985211,2297.4,2297.2,4.788289]
[1725717188086,10.99985211,2297.4,2297.3,0.31460194]
[1725717188290,3.72985211,2297.4,2297.3,0.31460194]
[1725717188486,3.72985211,2297.4,2297.2,4.788289]
[1725717188744,3.72985211,2297.4,2297.3,0.31460194]
[1725717189096,3.72985211,2297.4,2297.2,4.788289]
[1725717189422,3.72985211,2297.4,2297.3,0.31460194]
[1725717189727,3.72985211,2297.4,2297.2,4.788289]
[1725717190034,3.72985211,2297.4,2297.3,0.31460194]
[1725717190234,3.72985211,2297.4,2297.2,4.788289]
[1725717190394,3.72985211,2297.4,2297.3,0.31448567]
[1725717190711,3.72985211,2297.4,2297.2,4.788289]
[1725717190916,3.72985211,2297.4,2297.3,0.31448567]
[1725717191315,3.72985211,2297.4,2297.2,9.141309]
[1725717191533,3.72985211,2297.4,2297.3,0.31448567]
[1725717191728,3.72985211,2297.4,2297.3,4.66741567]
[1725717191934,3.72985211,2297.4,2297.3,9.65143047]
[1725717192123,3.72985211,2297.4,2297.3,9.96591614]
[1725717192328,3.72985211,2297.4,2297.3,5.61298614]
[1725717192526,3.72985211,2297.4,2297.3,4.66741567]
[1725717194248,3.72985211,2297.4,2297.3,9.02034567]
[1725717194849,3.72985211,2297.4,2297.3,4.66741567]
[1725717198052,5.2867,2297.8,2297.4,4.35268]
[1725717198439,5.2867,2297.8,2297.5,0.31379829]
[1725717198644,3.0,2297.8,2297.5,0.31379829]
[1725717198815,6.61776,2297.6,2297.1,4.35328]
[1725717199216,1.55290129,2297.2,2297.1,4.35328]
[1725717200286,1.55290129,2297.2,2297.1,8.70659]
[1725717200853,1.55290129,2297.2,2297.1,4.35328]
[1725717201366,1.55290129,2297.2,2296.7,4.35399]
[1725717201367,3.81830129,2297.2,2296.7,4.35399]
[1725717201517,1.55290129,2296.8,2296.7,4.35393]
[1725717201822,1.55290129,2296.8,2296.6,4.35418]
[1725717202023,1.55290129,2296.8,2296.6,8.70834]
[1725717202533,1.55290129,2296.8,2296.4,2.3424]
[1725717202534,3.81830129,2296.8,2296.5,4.35439]
[1725717202734,1.55290129,2296.6,2296.5,4.35439]
[1725717203946,3.72914971,2296.7,2296.6,4.35414]
[1725717204367,3.72914971,2296.7,2296.6,4.65809978]
[1725717204692,3.72914971,2296.7,2296.6,9.01235978]
[1725717204994,3.72914971,2296.7,2296.6,4.65809978]
[1725717205163,1.3669231,2296.9,2296.6,4.65809978]
[1725717205364,1.3669231,2296.9,2296.7,4.35393]
[1725717205563,3.72914971,2296.8,2296.6,4.35414]
[1725717205795,3.6323231,2296.7,2296.4,8.70915]
[1725717205967,3.72914971,2296.6,2296.5,4.35434]
[1725717206692,5.09607281,2296.8,2296.6,4.35426]
[1725717207687,1.3669231,2296.7,2296.6,4.35426]
[1725717207856,5.09607281,2296.8,2296.6,4.35426]
[1725717208353,5.09607281,2296.8,2296.7,0.303864]
[1725717209086,5.09607281,2296.8,2296.7,4.657934]
[1725717209291,3.72914971,2296.8,2296.7,4.657934]
[1725717209658,5.55467699,2296.8,2296.7,0.303864]
[1725717209860,6.33819722,2296.8,2296.7,0.303864]
[1725717210292,6.79319523,2296.8,2296.7,0.303864]
[1725717210593,4.51266994,2296.8,2296.7,0.303864]
[1725717211090,6.79319523,2296.8,2296.7,0.303864]
[1725717211660,6.33875914,2296.8,2296.7,0.303864]
[1725717214362,5.55523891,2296.8,2296.7,0.303864]
[1725717214674,5.55523891,2296.8,2296.7,4.657934]
[1725717215271,5.55523891,2296.8,2296.7,0.303864]
[1725717216695,3.72914971,2296.8,2296.7,0.303864]
[1725717216862,5.5552946,2296.8,2296.7,0.303864]
[1725717218488,6.33913625,2296.8,2296.7,0.303864]
[1725717221917,5.5552946,2296.8,2296.7,4.657934]
[1725717222070,5.0987955,2296.8,2296.7,9.012004]
[1725717222407,1.36964579,2296.9,2296.5,6.63113]
[1725717222609,1.36964579,2297.0,2296.9,4.35369]
[1725717222995,1.36964579,2297.0,2296.9,4.65840877]
[1725717223862,1.36964579,2297.0,2296.9,6.93510877]
[1725717224261,1.36964579,2297.0,2296.9,4.65840877]
[1725717225626,5.5552946,2297.1,2297.0,4.3535]
[1725717226078,5.5552946,2297.1,2297.0,4.65812301]
[1725717226482,6.01209777,2297.1,2297.0,4.65812301]
[1725717226679,3.72914971,2297.1,2297.0,4.65812301]
[1725717227206,5.55548071,2297.1,2297.0,4.65812301]
[1725717227907,6.01209777,2297.1,2297.0,4.65812301]
[1725717228077,5.55542979,2297.1,2297.0,4.65812301]
[1725717228403,3.72914971,2297.1,2297.0,4.65812301]
[1725717228966,6.01209777,2297.1,2297.0,4.65812301]
[1725717229507,3.72914971,2297.1,2297.0,4.65812301]
[1725717229974,3.37965423,2297.1,2297.0,4.65812301]
[1725717230341,1.55338845,2297.1,2297.0,4.65812301]
[1725717230482,3.37971364,2297.1,2297.0,9.01162301]
[1725717230685,1.55338845,2297.1,2297.0,9.01162301]
[1725717230880,2.92319291,2297.1,2297.0,9.01162301]
[1725717232519,2.92320159,2297.1,2297.0,9.01162301]
[1725717232872,2.92320159,2297.1,2297.0,10.34815331]
[1725717233404,1.55338845,2297.1,2297.0,10.34815331]
[1725717237301,1.55338845,2297.1,2297.0,9.01162301]
[1725717238191,1.36981314,2297.2,2297.1,4.35331]
[1725717238527,2.92320159,2297.3,2297.2,8.70624]
[1725717239031,2.92320159,2297.3,2297.2,9.01025293]
[1725717239731,1.36981314,2297.3,2297.2,9.01025293]
[1725717239931,2.92320159,2297.3,2297.2,10.34662822]
[1725717240140,1.55338845,2297.3,2297.2,10.34662822]
[1725717240434,2.92320159,2297.3,2297.2,10.34662822]
[1725717241031,2.92320159,2297.3,2297.2,9.01025293]
[1725717245023,1.55338845,2297.3,2297.2,9.01025293]
[1725717245338,2.92320159,2297.3,2297.2,9.01025293]
[1725717245849,5.18470159,2297.3,2297.2,4.65713293]
[1725717246053,5.64121364,2297.3,2297.2,4.65713293]
[1725717246340,5.18450355,2297.3,2297.2,4.65713293]
[1725717247440,5.18450355,2297.3,2297.2,4.35312]
[1725717247746,2.92300355,2297.3,2297.2,4.65703993]
[1725717248942,2.92300355,2297.3,2297.2,9.01015993]
[1725717249761,2.92300355,2297.3,2297.2,4.65703993]
[1725717249953,2.92300355,2297.3,2297.2,9.01015993]
[1725717250337,2.92300355,2297.3,2297.2,4.65703993]
[1725717250539,2.92300355,2297.3,2297.2,9.01015993]
[1725717251878,2.92300355,2297.3,2297.2,4.65703993]
[1725717253046,2.92300355,2297.3,2297.2,9.01015993]
[1725717253460,2.92300355,2297.3,2297.2,4.65703993]